fUSD/lending_fUSD_20250207
["ID","MTS","AMOUNT","RATE_DAILY","PERIOD"]
[352156130,1738962675111,-500.0,0.00016849,2]
[352156131,1738962675120,-555.95,0.00016849,2]
[352156132,1738962675135,-500.0,0.00016849,2]
[352156133,1738962675145,-500.0,0.00016849,2]
[352156134,1738962675154,-500.0,0.00016849,2]
[352156135,1738962675164,-500.0,0.00016849,2]
[352156136,1738962675173,-500.0,0.00016849,2]
[352156137,1738962675183,-500.0,0.00016849,2]
[352156138,1738962675192,-500.0,0.00016849,2]
[352156139,1738962675203,-500.0,0.00016849,2]
[352156140,1738962675213,-500.0,0.00016849,2]
[352156141,1738962675222,-500.0,0.00016849,2]
[352156142,1738962675233,-500.0,0.00016849,2]
[352156143,1738962675242,-500.0,0.00016849,2]
[352156144,1738962675256,-500.0,0.00016849,2]
[352156145,1738962675265,-500.0,0.00016849,2]
[352156146,1738962675275,-500.0,0.00016849,2]
[352156147,1738962675285,-751.72,0.00016849,2]
[352156148,1738962675295,-500.0,0.00016849,2]
[352156149,1738962675304,-500.0,0.00016849,2]
[352156150,1738962675314,-500.0,0.00016849,2]
[352156151,1738962675323,-500.0,0.00016849,2]
[352156152,1738962675332,-500.0,0.00016849,2]
[352156153,1738962675341,-500.0,0.00016849,2]
[352156154,1738962675352,-234.73373731,0.00016849,2]
[352156155,1738962675362,-500.0,0.00016849,2]
[352156156,1738962675372,-500.0,0.00016849,2]
[352156157,1738962675382,-500.0,0.00016849,2]
[352156158,1738962675392,-500.0,0.00016849,2]
[352156159,1738962675403,-500.0,0.00016849,2]
[352156160,1738962675412,-510.83081712,0.00016849,2]
[352156161,1738962675421,-500.0,0.00016849,2]
[352156162,1738962675431,-500.0,0.00016849,2]
[352156163,1738962675440,-500.0,0.00016849,2]
[352156164,1738962675450,-557.1,0.00016849,2]
[352156165,1738962675459,-500.0,0.00016849,2]
[352156166,1738962675469,-500.0,0.00016849,2]
[352156167,1738962675480,-500.0,0.00016849,2]
[352156168,1738962675490,-2589.18,0.00016849,2]
[352156169,1738962675503,-500.0,0.00016849,2]
[352156170,1738962675512,-500.0,0.00016849,2]
[352156171,1738962675522,-500.0,0.00016849,2]
[352156172,1738962675531,-500.0,0.00016849,2]
[352156173,1738962675543,-3025.21,0.00016849,2]
[352156174,1738962675552,-500.0,0.00016849,2]
[352156175,1738962675562,-1592.97,0.00016849,2]
[352156176,1738962675573,-664.54,0.00016849,2]
[352156177,1738962675582,-500.0,0.00016849,2]
[352156178,1738962675592,-720.84,0.00016849,2]
[352156179,1738962675602,-500.0,0.00016849,2]
[352156180,1738962675611,-500.0,0.00016849,2]
[352156181,1738962675621,-500.0,0.00016849,2]
[352156182,1738962675630,-500.0,0.00016849,2]
[352156183,1738962675640,-500.0,0.00016849,2]
[352156184,1738962675650,-735.52,0.00016849,2]
[352156185,1738962675660,-679.32,0.00016849,2]
[352156186,1738962675670,-1473.34,0.00016849,2]
[352156187,1738962675680,-500.0,0.00016849,2]
[352156188,1738962675690,-500.0,0.00016849,2]
[352156189,1738962675700,-2287.01,0.00016849,2]
[352156190,1738962675709,-500.0,0.00016849,2]
[352156191,1738962675719,-688.97,0.00016849,2]
[352156192,1738962675728,-1232.08,0.00016849,2]
[352156193,1738962675737,-500.0,0.00016849,2]
[352156194,1738962675747,-500.0,0.00016849,2]
[352156195,1738962675756,-500.0,0.00016849,2]
[352156196,1738962675766,-467.64537378,0.00016849,2]
[352156197,1738962675776,-500.0,0.00016849,2]
[352156198,1738962675787,-643.87,0.00016849,2]
[352156199,1738962675796,-500.0,0.00016849,2]
[352156200,1738962675806,-500.0,0.00016849,2]
[352156201,1738962675816,-500.0,0.00016849,2]
[352156202,1738962675825,-500.0,0.00016849,2]
[352156203,1738962675836,-2893.44,0.00016849,2]
[352156204,1738962675845,-500.0,0.00016849,2]
[352156205,1738962675855,-500.0,0.00016849,2]
[352156206,1738962675865,-1882.07,0.00016849,2]
[352156207,1738962675875,-500.0,0.00016849,2]
[352156208,1738962675885,-500.0,0.00016849,2]
[352156209,1738962675895,-500.0,0.00016849,2]
[352156210,1738962675904,-504.94,0.00016849,2]
[352156211,1738962675914,-500.0,0.00016849,2]
[352156212,1738962675925,-500.0,0.00016849,2]
[352156213,1738962675934,-734.15,0.00016849,2]
[352156214,1738962675943,-500.0,0.00016849,2]
[352156215,1738962675953,-500.0,0.00016849,2]
[352156216,1738962675963,-501.63453026,0.00016849,2]
[352156217,1738962675972,-872.52,0.00016849,2]
[352156218,1738962675982,-1620.81,0.00016849,2]
[352156219,1738962675992,-280.65086534,0.00016849,2]
[352156220,1738962676001,-670.44,0.00016849,2]
[352156221,1738962676010,-500.0,0.00016849,2]
[352156222,1738962676020,-500.0,0.00016849,2]
[352156223,1738962676030,-551.82,0.00016849,2]
[352156224,1738962676039,-500.0,0.00016849,2]
[352156225,1738962676049,-500.0,0.00016849,2]
[352156226,1738962676059,-500.0,0.00016849,2]
[352156227,1738962676069,-500.0,0.00016849,2]
[352156228,1738962676078,-500.0,0.00016849,2]
[352156229,1738962676088,-500.0,0.00016849,2]
[352156230,1738962676097,-204.92501875,0.00016849,2]
[352156231,1738962676107,-500.0,0.00016849,2]
[352156232,1738962676118,-500.0,0.00016849,2]
[352156233,1738962676127,-500.0,0.00016849,2]
[352156234,1738962676137,-815.33,0.00016849,2]
[352156235,1738962676146,-500.0,0.00016849,2]
[352156236,1738962676156,-500.0,0.00016849,2]
[352156237,1738962676166,-890.5,0.00016849,2]
[352156238,1738962676176,-921.84,0.00016849,2]
[352156239,1738962676185,-646.66,0.00016849,2]
[352156240,1738962676195,-500.0,0.00016849,2]
[352156241,1738962676204,-768.82,0.00016849,2]
[352156242,1738962676213,-500.0,0.00016849,2]
[352156243,1738962676223,-500.0,0.00016849,2]
[352156244,1738962676233,-500.0,0.00016849,2]
[352156245,1738962676242,-2473.61,0.00016849,2]
[352156246,1738962676252,-500.0,0.00016849,2]
[352156247,1738962676261,-2020.15,0.00016849,60]
[352156248,1738962676272,-500.0,0.00016849,2]
[352156249,1738962676281,-728.7,0.00016849,2]
[352156250,1738962676291,-500.0,0.00016849,2]
[352156251,1738962676301,-507.01647904,0.00016849,2]
[352156252,1738962676311,-500.0,0.00016849,2]
[352156253,1738962676322,-1296.94,0.00016849,2]
[352156254,1738962676332,-500.0,0.00016849,2]
[352156255,1738962676341,-500.0,0.00016849,2]
[352156256,1738962676351,-500.0,0.00016849,2]
[352156257,1738962676360,-500.0,0.00016849,2]
[352156258,1738962676370,-500.0,0.00016849,2]
[352156259,1738962676380,-621.35,0.00016849,2]
[352156260,1738962676390,-1120.97,0.00016849,2]
[352156261,1738962676400,-500.0,0.00016849,2]
[352156262,1738962676410,-2064.04,0.00016849,2]
[352156263,1738962676420,-500.0,0.00016849,2]
[352156264,1738962676429,-500.0,0.00016849,2]
[352156265,1738962676438,-702.25,0.00016849,2]
[352156266,1738962676448,-196.24046522,0.00016849,2]
[352156267,1738962676457,-1574.32,0.00016849,2]
[352156268,1738962676467,-500.0,0.00016849,2]
[352156269,1738962676476,-265.7527715,0.00016849,2]
[352156270,1738962676486,-500.56840735,0.00016849,2]
[352156271,1738962676498,-500.0,0.00016849,2]
[352156272,1738962676508,-747.26,0.00016849,2]
[352156273,1738962676517,-500.0,0.00016849,2]
[352156274,1738962676527,-859.97,0.00016849,2]
[352156275,1738962676538,-500.0,0.00016849,2]
[352156276,1738962676547,-500.0,0.00016849,2]
[352156277,1738962676556,-980.14,0.00016849,2]
[352156278,1738962676566,-2024.91,0.00016849,2]
[352156279,1738962676577,-500.0,0.00016849,2]
[352156280,1738962676586,-500.0,0.00016849,2]
[352156281,1738962676596,-500.0,0.00016849,2]
[352156282,1738962676605,-500.0,0.00016849,2]
[352156283,1738962676614,-500.0,0.00016849,2]
[352156284,1738962676624,-500.0,0.00016849,2]
[352156285,1738962676633,-525.35182917,0.00016849,2]
[352156286,1738962676643,-500.0,0.00016849,2]
[352156287,1738962676652,-500.0,0.00016849,2]
[352156288,1738962676662,-799.02,0.00016849,2]
[352156289,1738962676671,-895.75,0.00016849,2]
[352156290,1738962676681,-2449.54,0.00016849,2]
[352156291,1738962676690,-1857.42,0.00016849,2]
[352156292,1738962676699,-500.0,0.00016849,2]
[352156293,1738962676709,-500.0,0.00016849,2]
[352156294,1738962676718,-500.0,0.00016849,2]
[352156295,1738962676728,-500.0,0.00016849,2]
[352156296,1738962676737,-966.53,0.00016849,2]
[352156297,1738962676746,-500.0,0.00016849,2]
[352156298,1738962676755,-654.32,0.00016849,2]
[352156299,1738962676765,-500.0,0.00016849,2]
[352156300,1738962676774,-500.0,0.00016849,2]
[352156301,1738962676784,-500.0,0.00016849,2]
[352156302,1738962676793,-500.0,0.00016849,2]
[352156303,1738962676803,-500.0,0.00016849,2]
[352156304,1738962676813,-500.0,0.00016849,2]
[352156305,1738962676823,-1721.91,0.00016849,2]
[352156306,1738962676832,-412.86396377,0.00016849,2]
[352156307,1738962676842,-1123.91,0.00016849,2]
[352156308,1738962676852,-500.0,0.00016849,2]
[352156309,1738962676862,-500.0,0.00016849,2]
[352156310,1738962676871,-500.0,0.00016849,2]
[352156311,1738962676881,-889.11,0.00016849,2]
[352156312,1738962676891,-500.0,0.00016849,2]
[352156313,1738962676900,-827.41,0.00016849,2]
[352156314,1738962676910,-500.0,0.00016849,2]
[352156315,1738962676919,-1364.97,0.00016849,2]
[352156316,1738962676928,-1333.39,0.00016849,2]
[352156317,1738962676937,-976.13,0.00016849,2]
[352156318,1738962676947,-190.12353317,0.00016849,2]
[352156319,1738962676957,-500.0,0.00016849,2]
[352156320,1738962676968,-500.0,0.00016849,2]
[352156321,1738962676978,-500.0,0.00016849,2]
[352156322,1738962676988,-553.76,0.00016849,2]
[352156323,1738962676998,-500.0,0.00016849,2]
[352156324,1738962677007,-500.0,0.00016849,2]
[352156325,1738962677016,-500.0,0.00016849,2]
[352156326,1738962677025,-500.0,0.00016849,2]
[352156327,1738962677035,-500.0,0.00016849,2]
[352156328,1738962677045,-2369.56,0.00016849,2]
[352156329,1738962677055,-500.0,0.00016849,2]
[352156330,1738962677064,-666.75,0.00016849,2]
[352156331,1738962677074,-500.0,0.00016849,2]
[352156332,1738962677083,-500.0,0.00016849,2]
[352156333,1738962677093,-500.0,0.00016849,2]
[352156334,1738962677103,-503.82516113,0.00016849,2]
[352156335,1738962677112,-1612.56,0.00016849,2]
[352156336,1738962677121,-278.1160184,0.00016849,2]
[352156337,1738962677132,-500.0,0.00016849,2]
[352156338,1738962677142,-500.0,0.00016849,2]
[352156339,1738962677151,-284.23290297,0.00016849,7]
[352156340,1738962677161,-1375.74,0.00016849,2]
[352156341,1738962677235,-500.0,0.00016849,2]
[352156342,1738962677246,-500.0,0.00016849,2]
[352156343,1738962677255,-500.0,0.00016849,2]
[352156344,1738962677265,-500.0,0.00016849,2]
[352156345,1738962677275,-1207.96,0.00016849,2]
[352156346,1738962677284,-379.66606948,0.00016849,2]
[352156347,1738962677293,-967.99,0.00016849,2]
[352156348,1738962677303,-710.04,0.00016849,2]
[352156349,1738962677312,-500.0,0.00016849,2]
[352156350,1738962677323,-500.0,0.00016849,2]
[352156351,1738962677333,-500.0,0.00016849,2]
[352156352,1738962677343,-720.58,0.00016849,2]
[352156353,1738962677353,-1554.01,0.00016849,2]
[352156354,1738962677362,-527.05,0.00016849,2]
[352156355,1738962677372,-368.39016509,0.00016849,2]
[352156356,1738962677381,-930.05,0.00016849,2]
[352156357,1738962677392,-500.0,0.00016849,2]
[352156358,1738962677402,-500.0,0.00016849,2]
[352156359,1738962677411,-500.0,0.00016849,2]
[352156360,1738962677420,-500.0,0.00016849,2]
[352156361,1738962677430,-500.0,0.00016849,2]
[352156362,1738962677440,-500.0,0.00016849,2]
[352156363,1738962677449,-500.0,0.00016849,2]
[352156364,1738962677459,-610.37,0.00016849,2]
[352156365,1738962677468,-500.0,0.00016849,2]
[352156366,1738962677478,-500.0,0.00016849,2]
[352156367,1738962677488,-1932.29,0.00016849,2]
[352156368,1738962677500,-500.0,0.00016849,2]
[352156369,1738962677511,-1230.91,0.00016849,2]
[352156370,1738962677519,-500.0,0.00016849,2]
[352156371,1738962677529,-500.0,0.00016849,2]
[352156372,1738962677539,-939.48,0.00016849,2]
[352156373,1738962677549,-500.0,0.00016849,2]
[352156374,1738962677558,-500.0,0.00016849,2]
[352156375,1738962677567,-544.57,0.00016849,2]
[352156376,1738962677577,-956.99,0.00016849,2]
[352156377,1738962677587,-500.0,0.00016849,2]
[352156378,1738962677597,-500.0,0.00016849,2]
[352156379,1738962677608,-834.61,0.00016849,2]
[352156380,1738962677618,-868.83,0.00016849,2]
[352156381,1738962677627,-690.02,0.00016849,2]
[352156382,1738962677636,-500.0,0.00016849,2]
[352156383,1738962677645,-500.0,0.00016849,2]
[352156384,1738962677655,-500.0,0.00016849,2]
[352156385,1738962677665,-2103.5,0.00016849,2]
[352156386,1738962677676,-500.0,0.00016849,2]
[352156387,1738962677686,-720.23,0.00016849,2]
[352156388,1738962677695,-500.0,0.00016849,2]
[352156389,1738962677704,-615.46,0.00016849,2]
[352156390,1738962677713,-500.0,0.00016849,2]
[352156391,1738962677722,-500.0,0.00016849,2]
[352156392,1738962677732,-500.0,0.00016849,2]
[352156393,1738962677741,-500.0,0.00016849,2]
[352156394,1738962677750,-500.0,0.00016849,2]
[352156395,1738962677760,-500.0,0.00016849,2]
[352156396,1738962677770,-500.0,0.00016849,2]
[352156397,1738962677779,-828.29,0.00016849,2]
[352156398,1738962677790,-500.0,0.00016849,2]
[352156399,1738962677799,-500.0,0.00016849,2]
[352156400,1738962677809,-500.0,0.00016849,2]
[352156401,1738962677818,-500.0,0.00016849,2]
[352156402,1738962677828,-500.0,0.00016849,2]
[352156403,1738962677837,-500.0,0.00016849,2]
[352156404,1738962677847,-920.44,0.00016849,2]
[352156405,1738962677856,-665.63,0.00016849,2]
[352156406,1738962677866,-500.0,0.00016849,2]
[352156407,1738962677875,-769.5,0.00016849,2]
[352156408,1738962677886,-500.0,0.00016849,2]
[352156409,1738962677895,-938.82,0.00016849,2]
[352156410,1738962677906,-500.0,0.00016849,2]
[352156411,1738962677915,-500.0,0.00016849,2]
[352156412,1738962677925,-500.0,0.00016849,2]
[352156413,1738962677934,-500.0,0.00016849,2]
[352156414,1738962677943,-500.0,0.00016849,2]
[352156415,1738962677953,-500.0,0.00016849,2]
[352156416,1738962677962,-500.0,0.00016849,2]
[352156417,1738962677974,-500.0,0.00016849,2]
[352156418,1738962677983,-515.17,0.00016849,2]
[352156419,1738962677993,-500.0,0.00016849,2]
[352156420,1738962678004,-500.0,0.00016849,2]
[352156421,1738962678013,-602.87,0.00016849,2]
[352156422,1738962678022,-500.0,0.00016849,2]
[352156423,1738962678032,-500.0,0.00016849,2]
[352156424,1738962678042,-500.0,0.00016849,2]
[352156425,1738962678051,-500.0,0.00016849,2]
[352156426,1738962678060,-827.6,0.00016849,2]
[352156427,1738962678069,-598.56,0.00016849,2]
[352156428,1738962678079,-500.0,0.00016849,2]
[352156429,1738962678088,-867.5,0.00016849,2]
[352156430,1738962678098,-500.0,0.00016849,2]
[352156431,1738962678108,-500.0,0.00016849,2]
[352156432,1738962678117,-500.0,0.00016849,2]
[352156433,1738962678126,-500.0,0.00016849,2]
[352156434,1738962678135,-500.0,0.00016849,2]
[352156435,1738962678145,-776.9,0.00016849,2]
[352156436,1738962678154,-500.0,0.00016849,2]
[352156437,1738962678163,-500.0,0.00016849,2]
[352156438,1738962678173,-500.0,0.00016849,2]
[352156439,1738962678182,-983.25,0.00016849,2]
[352156440,1738962678191,-216.50770705,0.00016849,2]
[352156441,1738962678200,-500.0,0.00016849,2]
[352156442,1738962678210,-825.95,0.00016849,2]
[352156443,1738962678220,-500.0,0.00016849,2]
[352156444,1738962678229,-500.0,0.00016849,2]
[352156445,1738962678239,-500.0,0.00016849,2]
[352156446,1738962678249,-1128.17,0.00016849,2]
[352156447,1738962678259,-500.0,0.00016849,2]
[352156448,1738962678269,-500.0,0.00016849,2]
[352156449,1738962678279,-500.0,0.00016849,2]
[352156450,1738962678289,-500.0,0.00016849,2]
[352156451,1738962678299,-500.0,0.00016849,2]
[352156452,1738962678309,-1633.64,0.00016849,2]
[352156453,1738962678319,-1139.5,0.00016849,2]
[352156454,1738962678329,-500.0,0.00016849,2]
[352156455,1738962678339,-979.8,0.00016849,2]
[352156456,1738962678348,-500.0,0.00016849,2]
[352156457,1738962678358,-500.0,0.00016849,2]
[352156458,1738962678367,-500.0,0.00016849,2]
[352156459,1738962678376,-569.17,0.00016849,2]
[352156460,1738962678386,-565.60009174,0.00016849,2]
[352156461,1738962678394,-500.0,0.00016849,2]
[352156462,1738962678403,-1028.87,0.00016849,2]
[352156463,1738962678413,-500.0,0.00016849,2]
[352156464,1738962678423,-500.0,0.00016849,2]
[352156465,1738962678432,-500.0,0.00016849,2]
[352156466,1738962678442,-2367.59,0.00016849,2]
[352156467,1738962678452,-602.1,0.00016849,2]
[352156468,1738962678461,-555.04,0.00016849,2]
[352156469,1738962678470,-1865.44,0.00016849,2]
[352156470,1738962678480,-920.57,0.00016849,2]
[352156471,1738962678490,-500.0,0.00016849,2]
[352156472,1738962678504,-914.41,0.00016849,2]
[352156473,1738962678515,-500.0,0.00016849,2]
[352156474,1738962678526,-500.0,0.00016849,2]
[352156475,1738962678538,-847.84,0.00016849,2]
[352156476,1738962678548,-576.64,0.00016849,2]
[352156477,1738962678558,-500.0,0.00016849,2]
[352156478,1738962678569,-520.48,0.00016849,2]
[352156479,1738962678579,-500.0,0.00016849,2]
[352156480,1738962678589,-500.0,0.00016849,2]
[352156481,1738962678599,-500.0,0.00016849,2]
[352156482,1738962678608,-500.0,0.00016849,2]
[352156483,1738962678618,-764.01,0.00016849,2]
[352156484,1738962678628,-500.0,0.00016849,2]
[352156485,1738962678638,-1023.45,0.00016849,2]
[352156486,1738962678649,-606.42975009,0.00016849,2]
[352156487,1738962678659,-2139.32,0.00016849,2]
[352156488,1738962678670,-673.44,0.00016849,2]
[352156489,1738962678680,-500.0,0.00016849,2]
[352156490,1738962678690,-500.0,0.00016849,2]
[352156491,1738962678701,-500.0,0.00016849,2]
[352156492,1738962678714,-1744.48,0.00016849,2]
[352156493,1738962678725,-2158.33,0.00016849,2]
[352156494,1738962678736,-500.0,0.00016849,2]
[352156495,1738962678747,-500.0,0.00016849,2]
[352156496,1738962678758,-500.0,0.00016849,2]
[352156497,1738962678768,-1931.05,0.00016849,2]
[352156498,1738962678780,-1080.14,0.00016849,2]
[352156499,1738962678791,-500.0,0.00016849,2]
[352156500,1738962678801,-500.0,0.00016849,2]
[352156501,1738962678812,-1541.45,0.00016849,2]
[352156502,1738962678822,-500.0,0.00016849,2]
[352156503,1738962678831,-931.99,0.00016849,2]
[352156504,1738962678841,-747.37,0.00016849,2]
[352156505,1738962678851,-500.0,0.00016849,2]
[352156506,1738962678861,-500.0,0.00016849,2]
[352156507,1738962678872,-500.0,0.00016849,2]
[352156508,1738962678882,-1997.09,0.00016849,2]
[352156509,1738962678893,-500.0,0.00016849,2]
[352156510,1738962678904,-627.47,0.00016849,2]
[352156511,1738962678915,-672.89,0.00016849,2]
[352156512,1738962678929,-976.7,0.00016849,2]
[352156513,1738962678939,-500.0,0.00016849,2]
[352156514,1738962678950,-1569.59,0.00016849,2]
[352156515,1738962678960,-500.0,0.00016849,2]
[352156516,1738962678970,-500.0,0.00016849,2]
[352156517,1738962678980,-500.0,0.00016849,2]
[352156518,1738962678990,-500.0,0.00016849,2]
[352156519,1738962679001,-500.0,0.00016849,2]
[352156520,1738962679013,-500.0,0.00016849,2]
[352156521,1738962679027,-500.0,0.00016849,2]
[352156522,1738962679038,-500.0,0.00016849,2]
[352156523,1738962679049,-500.0,0.00016849,2]
[352156524,1738962679062,-500.0,0.00016849,2]
[352156525,1738962679073,-650.0,0.00016849,2]
[352156526,1738962679084,-500.0,0.00016849,2]
[352156527,1738962679095,-500.0,0.00016849,2]
[352156528,1738962679105,-1032.56,0.00016849,2]
[352156529,1738962679115,-826.83,0.00016849,2]
[352156530,1738962679125,-500.0,0.00016849,2]
[352156531,1738962679135,-352.03526773,0.00016849,2]
[352156532,1738962679146,-500.0,0.00016849,2]
[352156533,1738962679159,-1751.99,0.00016849,2]
[352156534,1738962679172,-759.64,0.00016849,2]
[352156535,1738962679181,-2041.24,0.00016849,2]
[352156536,1738962679191,-500.0,0.00016849,2]
[352156537,1738962679200,-2264.48,0.00016849,2]
[352156538,1738962679210,-500.0,0.00016849,2]
[352156539,1738962679221,-500.0,0.00016849,2]
[352156540,1738962679230,-500.0,0.00016849,2]
[352156541,1738962679240,-2283.68,0.00016849,2]
[352156542,1738962679250,-4761.95,0.00016849,2]
[352156543,1738962679260,-500.0,0.00016849,2]
[352156544,1738962679269,-3907.16,0.00016849,2]
[352156545,1738962679279,-826.86,0.00016849,2]
[352156546,1738962679289,-689.98,0.00016849,2]
[352156547,1738962679299,-2528.9,0.00016849,2]
[352156548,1738962679309,-500.0,0.00016849,2]
[352156549,1738962679318,-500.0,0.00016849,2]
[352156550,1738962679328,-500.0,0.00016849,2]
[352156551,1738962679340,-1803.94,0.00016849,2]
[352156552,1738962679351,-710.43,0.00016849,2]
[352156553,1738962679360,-500.0,0.00016849,2]
[352156554,1738962679370,-500.0,0.00016849,2]
[352156555,1738962679380,-500.0,0.00016849,2]
[352156556,1738962679390,-5435.31,0.00016849,2]
[352156557,1738962679400,-3235.71,0.00016849,2]
[352156558,1738962679410,-1456.27,0.00016849,2]
[352156559,1738962679419,-4643.89,0.00016849,2]
[352156560,1738962679429,-621.72,0.00016849,2]
[352156561,1738962679439,-500.0,0.00016849,2]
[352156562,1738962679449,-500.0,0.00016849,2]
[352156563,1738962679460,-500.0,0.00016849,2]
[352156564,1738962679470,-614.04,0.00016849,2]
[352156565,1738962679480,-6617.6,0.00016849,2]
[352156566,1738962679491,-605.47,0.00016849,2]
[352156567,1738962679505,-500.0,0.00016849,2]
[352156568,1738962679516,-500.0,0.00016849,2]
[352156569,1738962679527,-1624.35,0.00016849,2]
[352156570,1738962679538,-726.52,0.00016849,2]
[352156571,1738962679548,-2363.17,0.00016849,2]
[352156572,1738962679558,-500.0,0.00016849,2]
[352156573,1738962679568,-1390.38,0.00016849,2]
[352156574,1738962679578,-500.0,0.00016849,2]
[352156575,1738962679588,-2034.57,0.00016849,2]
[352156576,1738962679598,-500.0,0.00016849,2]
[352156577,1738962679608,-587.98,0.00016849,2]
[352156578,1738962679618,-958.77,0.00016849,2]
[352156579,1738962679628,-500.0,0.00016849,2]
[352156580,1738962679639,-500.0,0.00016849,2]
[352156581,1738962679650,-4549.51,0.00016849,2]
[352156582,1738962679660,-500.0,0.00016849,2]
[352156583,1738962679671,-1675.36,0.00016849,2]
[352156584,1738962679682,-827.73,0.00016849,2]
[352156585,1738962679692,-500.0,0.00016849,2]
[352156586,1738962679702,-862.78,0.00016849,2]
[352156587,1738962679713,-3109.57,0.00016849,2]
[352156588,1738962679723,-500.0,0.00016849,2]
[352156589,1738962679733,-1839.21,0.00016849,2]
[352156590,1738962679744,-500.0,0.00016849,2]
[352156591,1738962679754,-1416.59,0.00016849,2]
[352156592,1738962679764,-500.0,0.00016849,2]
[352156593,1738962679774,-3884.95,0.00016849,2]
[352156594,1738962679785,-1942.35,0.00016849,2]
[352156595,1738962679795,-693.73,0.00016849,2]
[352156596,1738962679806,-932.28,0.00016849,2]
[352156597,1738962679816,-500.0,0.00016849,2]
[352156598,1738962679826,-601.79,0.00016849,2]
[352156599,1738962679836,-4658.11,0.00016849,2]
[352156600,1738962679846,-753.87,0.00016849,2]
[352156601,1738962679855,-500.0,0.00016849,2]
[352156602,1738962679866,-500.0,0.00016849,2]
[352156603,1738962679876,-1424.57,0.00016849,2]
[352156604,1738962679886,-500.0,0.00016849,2]
[352156605,1738962679896,-1242.14,0.00016849,2]
[352156606,1738962679906,-500.0,0.00016849,2]
[352156607,1738962679916,-500.0,0.00016849,2]
[352156608,1738962679926,-500.0,0.00016849,2]
[352156609,1738962679937,-2121.9,0.00016849,2]
[352156610,1738962679947,-2867.45,0.00016849,2]
[352156611,1738962679957,-500.0,0.00016849,2]
[352156612,1738962679968,-500.0,0.00016849,2]
[352156613,1738962679978,-500.0,0.00016849,2]
[352156614,1738962679988,-500.0,0.00016849,2]
[352156615,1738962680001,-500.0,0.00016849,2]
[352156616,1738962680011,-500.0,0.00016849,2]
[352156617,1738962680022,-1049.04,0.00016849,2]
[352156618,1738962680031,-500.0,0.00016849,2]
[352156619,1738962680042,-3344.11,0.00016849,2]
[352156620,1738962680053,-500.0,0.00016849,2]
[352156621,1738962680063,-2007.14,0.00016849,2]
[352156622,1738962680073,-946.56,0.00016849,2]
[352156623,1738962680084,-645.28319272,0.00016849,2]
[352156624,1738962680094,-4534.72,0.00016849,2]
[352156625,1738962680104,-500.0,0.00016849,2]
[352156626,1738962680114,-2145.49,0.00016849,2]
[352156627,1738962680124,-500.0,0.00016849,2]
[352156628,1738962680134,-673.91,0.00016849,2]
[352156629,1738962680144,-500.0,0.00016849,2]